Workbook

Sheet Profile
A1: vk;dj x.kuk izi= ys[kk o"kZ 2021&22 dj fu/kkZj.k o"kZ 2022&23
A2: Developed by kailash chandra sharma,Teacher L-1,GSSS-JEEWANA,Block-masuda Dist.AJMER(Rajsthan)
A3: lkekU; tkudkjh | M3: Prog. Dev. By- KAILASH CHANDRA SHARMA, Contact:-klsharma1971@gmail.com | AH3: 1 | AI3: 3
A4: NAME | C4: KAILASH CHANDRA SHARMA | G4: BANK NAME | I4: BOB BIJAINAGAR | M4: DOWNLOAD FROM MY WEB.http://ctorone.com | AH4: 2 | AI4: 4
A5: DESGNATION | C5: TEACHER | G5: Bank Ac.No. | AG5: NPS | AH5: 3 | AI5: 5
A6: OFFICE NAME | C6: GSSS JEEWANA | G6: Tax Deductor Name | K6: PAN | O6: NPS | AG6: GPF | AH6: 4 | AI6: 6
A7: PAN NUMBER | C7: BBWPK1528D | G7: Father's Name | K7: TAN | S7: 1 | T7: 1 | AA7: REGULAR | AG7: YES | AH7: 5 | AI7: 7
A8: TAX DEDUCTOR'S DESIGNATION
A9: INFORMATION ABOUT SALARY AND ALLOWANCE | O9: CATEGORY OF EMPLOYEE | T9: 2 | AA9: RETIREMENT | AG9: NO | AH9: 6 | AI9: 8
A10: SALARY IN MARCH 2021 | C10: 36900 | E10: ewy osru es dksbZ ifjorZu&ekg dk dzekad ns a¼tqykbZ dh osruo`f} ds vykok½ | J10: fn;k x;k osru | AH10: 7 | AI10: 9
A11: PL Hkqxrku ysus okys ekg dk dzekad pqusA ugh fy;k rks [kkyh NksMsaA | E11: BONUS TAKEN YES/NO | G11: YES | I11: fdrus ekg ds fy, cksul feyk | L11: 12 | AH11: 8 | AI11: 10
A12: OTHER INCOME | AH12: 9 | AI12: 11
A13: INCOME OF HOUSE PROPERTY | G13: INTEREST OF FD | J13: OTHER | AH13: 10 | AI13: 12
A14: INVESTMENTS VI A ds vUrxZr | AH14: 11 | AI14: 1
A15: REBATE US 89(1) | D15: LIC PREMIUM Direct | G15: LIC FROM Salary | J15: PLI | M15: D;k vkidks osru ihMh gsM ls feyrk gS ? GPF dkfeZd dks NO j[kuk gSA | P15: NO | AH15: 12 | AI15: 2 | AK15: YES
A16: US 80 CCD | D16: TUITION FEE: 2 CHILDREN | G16: HOUSE LOAN INTEREST | J16: HOME LOAN CAPITAL | AK16: NO
A17: US 80 D | D17: US 80 E | G17: US 80 G | J17: US 80 CCD(1)B
A18: US 80 DD | D18: jk"V~h; cpr i= | G18: lqdU;k le`f) ;kstuk | J18: US 80 CCC
A19: lkeqfgd nq?kZVuk chek | C19: 2100 | D19: GPF 2004 dh jkf'k Hkjsa | G19: US 80 U | J19: US 80 TTA
A20: ULIP | D20: PPF | G20: BOND OF NABAED | J20: jk"V~h; cpr i= ij vnRr C;kt
A21: MARCH | B21: APRIL | C21: MAY | D21: JUNE | E21: JULY | F21: AUG | G21: SEP | H21: OCT | I21: NOV | J21: DEC | K21: JAN | L21: FEB
A23: TAX DEDUCTED AT SOURCE
A24: MARCH | B24: APRIL | C24: MAY | D24: JUNE | E24: JULY | F24: AUG | G24: SEP | H24: OCT | I24: NOV | J24: DEC | K24: JAN | L24: FEB
A25: 0 | B25: 0 | C25: 0 | D25: 0 | E25: 0 | F25: 0 | G25: 0 | H25: 0 | I25: 0
A26: AREAR 1 TDS | C26: 0 | D26: QUARTER 1st | F26: QUARTER 2nd | H26: QUARTER 3rd | J26: QUARTER 4th
A27: AREAR 2 TDS | C27: 0
A28: AREAR 3 TDS | C28: 0 | D28: INCOME TAX BEFORE TDS | G28: =A25+B25+C25+D25+E25+F25+G25+H25+I25+J25+K25+L25+C26+C27+C28 -> 0 | I28: INCOME TAX AFTER TDS | L28: =AE28-G28 -> 0 | AE28: ='IT calculation'!E47 -> 0
A29: Receipt Numbers of Original statements of TDS under sub-section (3) of section 200 | D29: QUARTER 1st | F29: QUARTER 2nd | H29: QUARTER 3rd | J29: QUARTER 4th

Sheet Salary
A1: osru o dVkSfr;ksa dk fooj.k 2021 & 2022
A2: =Profile!C4 -> KAILASH CHANDRA SHARMA | H2: =Profile!C5 -> TEACHER | O2: =Profile!C6 -> GSSS JEEWANA
A3: dz- la- | B3: ekg | C3: osru tks fn;k x;k | L3: dVkSfr;ka tks dh x;h | Y3: 'kq} Hkqxrku dh x;h jkf'k | Z3: Vªstjh ckmpj ua- | AA3: Hkqxrku fn-
C4: jfuax is cS.M o xzsM is | D4: Mh , | E4: HRA | F4: 'kgjh {friwfrZ HkÙkk | G4: cksul | H4: Govt.NPS | I4: vU; | J4: vU; | K4: ;ksx | L4: =Profile!O6 -> NPS | M4: th ih ,Q _.k | N4: jkT; chek | O4: dksjksuk fjyhQ Q.M | P4: jkT; chek _.k | Q4: RGHS | R4: L I C | S4: GPF 2004 | T4: fgrdkjh fuf/k | U4: Govt.NPS | V4: vk; dj | W4: lk nq ch | X4: ;ksx
A5: 1 | B5: 2 | C5: 3 | D5: 4 | E5: 5 | F5: 6 | G5: 7 | H5: 8 | I5: 9 | J5: 10 | K5: 11 | L5: 12 | M5: 13 | N5: 14 | O5: 15 | P5: 16 | Q5: 17 | R5: 18 | S5: 19 | T5: 20 | U5: 21 | V5: 22 | W5: 23 | X5: 24 | Y5: 25 | Z5: 26 | AA5: 27
A6: 1 | B6: ekpZ&21 | C6: =control!D4 -> 36900 | D6: =control!E4 -> 6273 | E6: =control!G4 -> 2952 | H6: =IF(Profile!$P$15="YES",control!T4,0) -> 0 | K6: =SUM(C6:J6) -> 46125 | L6: =control!T4 -> 4317 | N6: =control!J4 -> 2200 | Q6: =control!N4 -> 0 | R6: =Profile!I15 -> 0 | U6: =IF(Profile!$P$15="YES",control!T4,0) -> 0 | V6: =control!B17 -> 0 | X6: =SUM(L6:W6) -> 6517 | Y6: =K6-X6 -> 39608
A7: 2 | B7: vizsy&21 | C7: =control!D5 -> 36900 | D7: =control!E5 -> 6273 | E7: =control!G5 -> 2952 | H7: =IF(Profile!$P$15="YES",control!T5,0) -> 0 | K7: =SUM(C7:J7) -> 46125 | L7: =control!T5 -> 4317 | N7: =control!J5 -> 2200 | Q7: =control!N5 -> 0 | R7: =R6 -> 0 | U7: =IF(Profile!$P$15="YES",control!T5,0) -> 0 | V7: =control!C17 -> 0 | W7: =Profile!C19 -> 2100 | X7: =SUM(L7:W7) -> 8617 | Y7: =K7-X7 -> 37508
A8: 3 | B8: ebZ&21 | C8: =control!D6 -> 36900 | D8: =control!E6 -> 6273 | E8: =control!G6 -> 2952 | H8: =IF(Profile!$P$15="YES",control!T6,0) -> 0 | K8: 46125 | L8: =control!T6 -> 4317 | N8: =control!J6 -> 2200 | Q8: =control!N6 -> 0 | R8: 0 | U8: =IF(Profile!$P$15="YES",control!T6,0) -> 0 | V8: =control!D17 -> 0 | X8: 6517 | Y8: 39608
A9: 4 | B9: twu&21 | C9: =control!D7 -> 36900 | D9: =control!E7 -> 6273 | E9: =control!G7 -> 2952 | H9: =IF(Profile!$P$15="YES",control!T7,0) -> 0 | K9: 46125 | L9: =control!T7 -> 4317 | N9: =control!J7 -> 2200 | Q9: =control!N7 -> 0 | R9: 0 | U9: =IF(Profile!$P$15="YES",control!T7,0) -> 0 | V9: =control!E17 -> 0 | X9: 6517 | Y9: 39608
A10: 5 | B10: tqyk-&21 | C10: =control!D8 -> 38000 | D10: =control!E8 -> 10640 | E10: =control!G8 -> 3040 | H10: =IF(Profile!$P$15="YES",control!T8,0) -> 0 | K10: 51680 | L10: =control!T8 -> 4864 | N10: =control!J8 -> 2200 | Q10: =control!N8 -> 0 | R10: 0 | U10: =IF(Profile!$P$15="YES",control!T8,0) -> 0 | V10: =control!F17 -> 0 | X10: 7064 | Y10: 44616
A11: 6 | B11: vx-&21 | C11: =control!D9 -> 38000 | D11: =control!E9 -> 10640 | E11: =control!G9 -> 3420 | H11: =IF(Profile!$P$15="YES",control!T9,0) -> 0 | K11: 52060 | L11: =control!T9 -> 4864 | N11: =control!J9 -> 2200 | Q11: =control!N9 -> 0 | R11: 0 | U11: =IF(Profile!$P$15="YES",control!T9,0) -> 0 | V11: =control!G17 -> 0 | X11: 7064 | Y11: 44996
A12: 7 | B12: flr-&21 | C12: =control!D10 -> 38000 | D12: =control!E10 -> 10640 | E12: =control!G10 -> 3420 | H12: =IF(Profile!$P$15="YES",control!T10,0) -> 0 | K12: 52060 | L12: =control!T10 -> 4864 | N12: =control!J10 -> 2200 | Q12: =control!N10 -> 0 | R12: 0 | U12: =IF(Profile!$P$15="YES",control!T10,0) -> 0 | V12: =control!H17 -> 0 | X12: 7064 | Y12: 44996
A13: 8 | B13: vDVw-&21 | C13: =control!D11 -> 38000 | D13: =control!E11 -> 11780 | E13: =control!G11 -> 3420 | H13: =IF(Profile!$P$15="YES",control!T11,0) -> 0 | K13: 53200 | L13: =control!T11 -> 4978 | N13: =control!J11 -> 2200 | Q13: =control!N11 -> 0 | R13: 0 | U13: =IF(Profile!$P$15="YES",control!T11,0) -> 0 | V13: =control!I17 -> 0 | X13: 7178 | Y13: 46022
A14: 9 | B14: uc-&21 | C14: =control!D12 -> 38000 | D14: =control!E12 -> 11780 | E14: =control!G12 -> 3420 | H14: =IF(Profile!$P$15="YES",control!T12,0) -> 0 | K14: 53200 | L14: =control!T12 -> 4978 | N14: =control!J12 -> 2200 | Q14: =control!N12 -> 0 | R14: 0 | U14: =IF(Profile!$P$15="YES",control!T12,0) -> 0 | V14: =control!J17 -> 0 | X14: 7178 | Y14: 46022
A15: 10 | B15: fnl-&21 | C15: =control!D13 -> 38000 | D15: =control!E13 -> 11780 | E15: =control!G13 -> 3420 | H15: =IF(Profile!$P$15="YES",control!T13,0) -> 0 | K15: 53200 | L15: =control!T13 -> 4978 | N15: =control!J13 -> 2200 | Q15: =control!N13 -> 0 | R15: 0 | T15: =control!P3 -> 250 | U15: =IF(Profile!$P$15="YES",control!T13,0) -> 0 | V15: =control!K17 -> 0 | X15: 7428 | Y15: 45772
A16: 11 | B16: tu-&22 | C16: =control!D14 -> 38000 | D16: =control!E14 -> 11780 | E16: =control!G14 -> 3420 | H16: =IF(Profile!$P$15="YES",control!T14,0) -> 0 | K16: 53200 | L16: =control!T14 -> 4978 | N16: =control!J14 -> 2200 | Q16: =control!N14 -> 0 | R16: 0 | U16: =IF(Profile!$P$15="YES",control!T14,0) -> 0 | V16: =control!L17 -> 0 | X16: 7178 | Y16: 46022
A17: 12 | B17: Qj-&22 | C17: =control!D15 -> 38000 | D17: =control!E15 -> 11780 | E17: =control!G15 -> 3420 | H17: =IF(Profile!$P$15="YES",control!T15,0) -> 0 | K17: 53200 | L17: =control!T15 -> 4978 | N17: =control!J15 -> 2200 | Q17: =control!N15 -> 0 | R17: 0 | U17: =IF(Profile!$P$15="YES",control!T15,0) -> 0 | V17: =control!M17 -> 0 | X17: 7178 | Y17: 46022
A18: 13 | B18: HRA,fj | E18: =control!J22 -> 380 | K18: =SUM(C18:J18) -> 380 | L18: 0 | M18: 0 | N18: 0 | O18: 0 | P18: 0 | Q18: 0 | R18: 0 | S18: 0 | T18: 0 | U18: 0 | V18: 0 | W18: 0 | X18: =SUM(L18:W18) -> 0 | Y18: 380
A19: 14 | B19: Mh , ,fj | D19: =control!N22 -> 3420 | H19: 0 | K19: =SUM(C19:J19) -> 3420 | L19: =IF(Profile!O6="NPS",ROUND((K19)*10%,0),IF(Profile!O6="GPF",0)) -> 342 | S19: =IF(Profile!O6="NPS",(K19-L19),0) -> 3078 | X19: =SUM(L19:W19) -> 3420 | Y19: 0
A20: 15 | B20: le- vo- | C20: =control!AE4 -> 0 | D20: =control!AF4 -> 0 | K20: =SUM(C20:J20) -> 0 | X20: 0 | Y20: =K20-X20 -> 0
A21: 16 | B21: cksul | G21: =control!V5 -> 6774 | K21: =SUM(C21:J21) -> 6774 | L21: =IF(Profile!O6="GPF",K21/2,0) -> 0 | S21: =IF(Profile!O6="NPS",K21/2,0) -> 3387 | X21: 3387 | Y21: =K21-X21 -> 3387
A22: 17 | B22: ekpZ&20 | C22: 0 | D22: 0 | E22: 0 | F22: 0 | G22: 0 | H22: 0 | I22: 0 | J22: 0 | K22: =SUM(C22:J22) -> 0 | L22: 0 | M22: 0 | N22: 0 | O22: 0 | P22: 0 | Q22: 0 | R22: 0 | S22: 0 | T22: 0 | U22: 0 | V22: 0 | W22: 0 | X22: =SUM(L22:W22) -> 0 | Y22: =K22-X22 -> 0
A23: 18 | B23: fQDls ,fj | K23: =SUM(C23:J23) -> 0 | X23: =SUM(L23:W23) -> 0 | Y23: =K23-X23 -> 0
A24: 19 | K24: 0 | X24: 0 | Y24: 0
A25: 20 | B25: ;ksx | C25: =SUM(C6:C24) -> 451600 | D25: =SUM(D6:D24) -> 119332 | E25: 39168 | F25: 0 | G25: 6774 | H25: 0 | I25: 0 | J25: 0 | K25: 616874 | L25: 57092 | M25: 0 | N25: 26400 | O25: 0 | P25: 0 | Q25: 0 | R25: 0 | S25: 6465 | T25: 250 | U25: 0 | V25: 0 | W25: 2100 | X25: 92307 | Y25: 524567
A27: Prog. Dev. By- KAILASH CHANDRA SHARMA, Contact:-klsharma1971@gmail.com | N27: gLrk{kj deZpkjh | V27: gLrk{kj vkgj.k o forj.k vf/kdkjh
A33: HOW TO USE
A34: 1- izksQkby 'khV ij okafNr fooj.k ;fn Hkj fy;k gS rks LVs.MMZ lSysjh 'khV tujsV djus ds fy, Åij fn;s x;s cVu 'Generate Salary Sheet' dks nckb;sA
A35: 2. LVS.MMZ lSysjh 'khV izkIr djus ds Ik'pkr vki viuh O;fDrxr vko';drkvksa ds vuqlkj bles Modifications dj ldrs gSAtSls GPF o SI dh dVkSfr;ksa dk change dj ldrs gSAfdUrq /;ku jgs vkids }kjk ;fn bl 'khV ij dksbZ Hkh iforZu fd;k gS rks vc iqu% 'khV ij ekStwn cVu 'Generate Salary Sheet' dks ugha nck,a vU;Fkk vki }kjk fd, x, 'Modifications' lekIr gks tk,axsAftu dkWye o jkW ds ysoy dk dyj xzhu gS vki muds ysoy vko';drk gksus ij change dj ldrs gSA
A36: 3- iqu% u, O;fDr ds fy, LVS.MMZ lSysjh 'khV tujsV djus ds fy, izksQkby ij fooj.k Hkjsa ,oa 'khV ij ekStwn cVu Generate Salary Sheet ' dks nck,aA fizaV dek.M nsus ls igys fizaV O;w vo'; ns[ksa- ,oa mlh ist dks fizaV djsa ftldh vkidks vko'krk gSA

Sheet IT calculation
A1: vk;dj x.kuk i= ys[kk o"kZ 2021&2022 dj fu/kkZj.k o"kZ 2022&2023
A2: =Profile!C4 -> KAILASH CHANDRA SHARMA | C2: =Profile!C5 -> TEACHER | D2: =Profile!C6 -> GSSS JEEWANA
A3: =CONCATENATE("PAN:- ",Profile!C7) -> PAN:- BBWPK1528D | B3: =CONCATENATE("Bank Ac.No.:-",Profile!I5) -> Bank Ac.No.:- | D3: =CONCATENATE("Name of Bank:-",Profile!I4) -> Name of Bank:-BOB BIJAINAGAR
A4: 1- osru en esa vk; ¼HkÙkksa lfgr½ | B4: (+ Govt. Contri. towards NPS) | E4: =IF(Profile!P15="YES",(Salary!K25),IF(Profile!O6="NPS",(Salary!K25+Salary!L25),Salary!K25)) -> 673966
A5: ;fn osru 150000 ls vf/kd gS rks /kkjk 17¼2½ ds varxZr izkIr lqfo/kk,a | D5: 0 | E5: =E4+D5 -> 673966
A6: LVs.MMZ fMMD'ku | D6: =IF(control!S31=1,0,50000) -> 50000 | E6: =IF(E5>D6,E5-D6,0) -> 623966
A7: ?kVkb;s& dVkSfr;ka US10 (13 A) | B7: 0 | C7: US10 | D7: 0 | E7: =E6-(B7+D7) -> 623966
A8: 2- ¼1½ v/;k; IV C ds varxr vk;% ¼1½ Lo;a ds mi;ksx esa 'kwU; | C8: ¼2½ izkIr fdjk;k | D8: 0
A9: ¼1½ x`gdj | B9: (2) Standard Deduction | C9: ¼3½ _.k ij C;kt | D9: ¼4½ izkIr fdjk;k&¼;ksx 1 ls 3½
A10: 0 | B10: 0 | C10: =Profile!I16 -> 0 | D10: =D8-(A10+B10+C10) -> 0 | E10: =E7+IF(AND(D10<0,ABS(D10)>200000),"-200000",D10) -> 623966
A11: 3- vU; óksrksa ls vk;%
A12: NSC ij C;kt | B12: FDR ls C;kt | C12: Bonds ls C;kt | D12: cpr [kkrs ij C;kt | E12: vU; vk; | I12: u, vFkok iqjkus VSDl flLVe dk p;u djs
A13: =Profile!L13 -> 0 | B13: =Profile!I13 -> 0 | C13: =A13 -> 0 | D13: =E13 -> 0 | E13: 0
A14: ldy dqy vk; | E14: =E10+A13+B13+C13+D13+E13 -> 623966
A15: v/;k; VI A ds vUrxZr dVkSfr;ka
A16: =IF(Profile!O6="NPS","GPF 2004","GPF") -> GPF 2004 | C16: =IF(control!S31=1,0,IF(Profile!O6="NPS",Salary!S25,Salary!L25)) -> 6465 | D16: US 80CCD(1) | E16: =IF(Profile!O6="NPS",Salary!L25,0) -> 57092
A17: S I | C17: =IF(control!S31=1,0,Salary!N25) -> 26400 | D17: Tuition fee: 2 children | E17: =IF(control!S31=1,0,control!O9) -> 0
A18: LIC | C18: =IF(control!S31=1,0,control!K20) -> 0 | D18: jk"Vªh; cpr i= | E18: =IF(control!S31=1,0,Profile!F18) -> 0
A19: Gr. Acc. Ins. | C19: =IF(control!S31=1,0,control!O3) -> 2100 | D19: jk"Vªh; cpr i= ij vnÙk C;kt | E19: =IF(control!S31=1,0,control!O10) -> 0 | H19: xzhu dyj lsYl dks vko';drk gks rks esU;qvyh Hkj ys
A20: ULIP | C20: =IF(control!S31=1,0,control!O4) -> 0 | D20: bfDoVh fyad lsfoax Ldhe | E20: 0
A21: Hkou _.k iquHkqZxrku | C21: =IF(control!S31=1,0,control!O5) -> 0 | D21: LFkfxr okf"kZdh | E21: 0
A22: PPF | C22: =IF(control!S31=1,0,control!O6) -> 0 | D22: LFkkbZ tek 5 o"kZ | E22: 0
A23: PLI | C23: =IF(control!S31=1,0,control!O7) -> 0 | D23: lqdU;k le`f) ;kstuk | E23: =IF(control!S31=1,0,Profile!I18) -> 0
A24: NOTIFIED BOND OF NABARD | C24: =IF(control!S31=1,0,control!O8) -> 0 | D24: US 80CCC | E24: =IF(control!S31=1,0,Profile!L18) -> 0
A25: =CONCATENATE("TOTAL",IF(control!S31=1,"(excluding govt.contri. To NPS)","")) -> TOTAL | E25: =C16+C17+C18+C19+C20+C21+C22+C23+E16+E17+E18+E19+E20+E21+E22+E23 -> 92057
A26: Qualifying Amount US80CCE (Max Rs 150000/) | C26: =IF(control!S31=1,"+US 80CCD(2)","") ->  | D26: =CONCATENATE(IF(Profile!O6="NPS","Rs.",""),IF(Profile!O6="NPS",E16,"")) -> Rs.57092 | E26: =IF(E25<=150000,E25,150000)+IF(Profile!O6="NPS",Salary!L25,"0") -> 149149
A27: vU; dVkSfr;ka
A28: US 80 EEA Max Rs 150000/ | E28: 0
A29: US 80D | E29: =Profile!C17 -> 0
A30: US 80DD | E30: =Profile!C18 -> 0
A31: US 80DDB (Patient suffering from Cancer, AIDS, Chronical renal failure, Thalassaemia etc.) | E31: 0
A32: US 80 E | E32: =Profile!F17 -> 0
A33: US 80G | E33: =Profile!I17 -> 0
A34: US 80GG ¼Hkqxrku fd, x, Hkou fdjk;s ds ckjs es dVkSrh] vf/kdre # 5000 rd½ | E34: 0
A35: US 80EE ¼izFke vkoklh; ?kj gsrq fy, x, yksu ij C;kt dh vfrfjDr NwV] vf/kdre # 50000 rd½ | E35: 0
A36: US 80U | E36: =Profile!I19 -> 0
A37: US 80 TTA | E37: =Profile!L19 -> 0
A38: US 80 CCD (1B) | E38: =Profile!L17 -> 0
A39: v/;k; VI A ds vUrxZr dqy dVkSfr;ka | E39: =E26+E28+E29+E30+E31+E32+E33+E34+E35+E36+E37+E38 -> 149149
A40: 'kq) dj ;ksX; vk; ¼iw.kkZad esa½ | E40: =ROUND((E14-E39),-1) -> 474820
A41: TAX FOR MEN | C41: =ROUND(IF(E40<=250000,0,IF(E40<=500000,(E40-250000)*0.05,IF(E40<=750000,12500+(E40-500000)*0.1,IF(E40<=1000000,37500+(E40-75000)*0.15,IF(E40<=1250000,75000+(E40-1000000)*0.2,IF(E40<=1500000,125000+(E40-1250000)*0.25,IF(E40>1500000,187500+(E40-1500000)*0.3,"0"))))))),0) -> 11241 | D41: =IF(E40<=500000,C42,C41) -> 0 | E41: =ROUND(IF(E40<=250000,0,IF(E40<=500000,(E40-250000)*0.05,IF(E40<=1000000,12500+(E40-500000)*0.2,IF(E40>1000000,112500+(E40-1000000)*0.3,"0")))),0) -> 11241
A42: Tax Credit, Max Rs 12500/ | C42: =IF(AND(E40<=500000,C41>=12500),C41-12500,IF(AND(E40<=500000,C41<12500),0,C41)) -> 0 | E42: =IF(AND(E40<=500000,E41>=12500),E41-12500,IF(AND(E40<=500000,E41<12500),0,E41)) -> 0
A43: dqy vk;dj ns;rk | E43: =IF(E40<=500000,E42,E41) -> 0
A44: fpfdRlk ,oa f'k{kk midj 4% | D44: =ROUND((E43*0.04),0) -> 0 | E44: =D44 -> 0
A45: dqy vk;dj | E45: =SUM(E43:E44) -> 0
A46: REBATE US 89 (1) | E46: =Profile!C15 -> 0
A47: dqy dj ns;rk | E47: =E45-E46 -> 0
A48: óksr ij gqbZ dVkSrh
A49: ekpZ 2021 | B49: =control!B17 -> 0 | C49: flrEcj 2021 | D49: =control!H17 -> 0 | E49: fQDls'ku ,fj;j ls VhMh,l
A50: vizsy 2021 | B50: =control!C17 -> 0 | C50: vDVwcj 2021 | D50: =control!I17 -> 0 | E50: =Profile!C26 -> 0
A51: ebZ 2021 | B51: =control!D17 -> 0 | C51: uoEcj 2021 | D51: =control!J17 -> 0 | E51: =Profile!C27 -> 0
A52: twu 2021 | B52: =control!E17 -> 0 | C52: fnlEcj 2021 | D52: =control!K17 -> 0 | E52: =Profile!C28 -> 0
A53: tqykbZ 2021 | B53: =control!F17 -> 0 | C53: tuojh 2022 | D53: =control!L17 -> 0
A54: vxLr 2021 | B54: =control!G17 -> 0 | C54: Qjojh 2022 | D54: =control!M17 -> 0
A55: óksr ij gqbZ dqy dVkSrh | E55: =SUM(B49:B54)+SUM(D49:D54)+E50 -> 0
A56: 'ks"k dj ns;rk | E56: =IF(E47>E55,E47-E55,"0") -> 0
A57: dj fjQ.M | E57: =IF(E55>E47,E47-E55,"0") -> 0
A60: Prog. Dev. By:-Kailash chandra sharma, Contact:-klsharma1971@gmail.com | E60: gLrk{kj deZpkjh

Sheet us(89)1 Form
A1: CALCULATION OF RELIEF UNDER SECTION 89 (1) | O1: Male | Q1: 1- loZizFke vius ,fj;j dks xr foÙkh; o"kksZa ds vuqlkj foHkkftr djsaA
A2: NAME | D2: =Profile!C4 -> KAILASH CHANDRA SHARMA | O2: Female
A3: ADDRESS | O3: 2
A4: PAN | H4: CATEGORY | Q4: 2- vc lEcfU/kr foÙkh; o"kksZa ds QkWeZ 16 vFkok ITR ls dj ;ksX; vk; dks lEcfU/kr lsYl esa Hkjuk gSA
A5: FINANCIAL YEAR- 2015-16 | L5: INCOME ( Rs )
A6: Enter net taxable income for 2017-18 (as per ITR/Form-16) | L6: 489520
A7: Enter arrears relates to 2017-18 | L7: 0
A8: FINANCIAL YEAR- 2016-17 | L8: INCOME ( Rs ) | Q8: 3- dj ;ksX; vk; og vk; gS ftl ij ml foÙkh; o"kZ esa fu/kkZfjr vk;dj nj ls vk;dj dh x.kuk dh tkrh gSA
A9: Enter net taxable income for 2018-19 (as per ITR/Form-16) | L9: 53009
A10: Enter arrears relates to 2018-19 | L10: 0
A11: FINANCIAL YEAR- 2017-18 | L11: INCOME ( Rs )
A12: Enter net taxable income for 2019-20 (as per ITR/Form-16) | L12: 802296 | Q12: 4- vc bl QkWeZ esa lEcfU/kr foÙkh; o"kZ dh dj ;ksX; vk; ,oa ml o"kZ ls lEcfU/kr ,fj;j dh jkf'k HkjsaA /;ku jgs foÙkh; o"kZ 2019&20 ds fy, Hkjh x;h dj ;ksX; vk; esa lEiw.kZ ,fj;j dh jkf'k tqMh gksA izkIr NwV dh jkf'k dks 'profile' 'khV ij lsy C15 esa Rebate US89(1) esa HkjsaA
A13: Enter arrears relates to 2019-20 | L13: 0
A14: FINANCIAL YEAR- 2018-19 | L14: INCOME ( Rs )
A15: Enter net taxable income for 2020-21 (as per ITR/Form-16) | L15: 718752
A16: Enter arrears relates to 2020-21 | L16: 39548
A17: FINANCIAL YEAR- 2019-20 | L17: INCOME ( Rs )
A18: Enter net taxable income for 2021-22 including entire arrears received (as per ITR/Form-16) | L18: ='IT calculation'!E40 -> 474820

Sheet form10E
A1: FORM NO. 10 E (See rule 21AA)
A2: Form for furnishing particulars of income undr scetion 192(2A) for year ending 31st March 2020 for claiming relief under section 89(1) by a Government servant or an employee in a company, co-operative society, local authority, university, institution, association or body.
A3: Name | D3: =Profile!C4 -> KAILASH CHANDRA SHARMA | P3: Prog. Dev. By- Kailash chandra sharma, Cont- Klsharma1971@gmail.com
A4: Address | D4: ='us(89)1 Form'!D3:N3 -> 0
A5: PAN | D5: =Profile!C7 -> BBWPK1528D | I5: Status | K5: Indian Resident
A7: Particulars of Income referred to in rule 21A of the Income tax Rules, 1962, during the previous year relevant to assessment year 2022-23
A8: 1. (a) Salary received in arrears or in advance during 2021-22 in accordance with the provision of sub-rule (2) of rule 21A | L8: ='us(89)1 Form'!L7+'us(89)1 Form'!L10+'us(89)1 Form'!L13+'us(89)1 Form'!L16 -> 39548
A9: (b) Payment in the nature of gratuity in respect of past services, extending over a period of not less than 5 years in accordance with the provisions of sub-rule (3) of rule 21A | L9: Not applicable
A10: (c) Payment in the nature of compensation from the employer or former employer at or in connection with termination of employment after continuous service of not less than 3 years in accordance with the provisions of sub-rule (4) of rule 21A | L10: Not applicable
A11: (d) Payment in commutation of pension in accordance with the provisions of sub-rule (5) of rule 21A | L11: Not applicable
A12: 2. Detailed particulars of payments referred to above may be given in Annexure I, II, IIA, III or IV as the case may be | L12: Annexure- I
A13: Verification
A14: I do hereby declare that what is stated above is true to the best of my knowledge and belief. Verified today
A16: Date:
K17: Signature of the employee
A19: ANNEXURE - I
A20: 1. Total net taxable Income excluding Salary received in Arrears or advance | L20: =L22-L21 -> 435272
A21: 2. salary received in arrears or advance | L21: =L8 -> 39548
A22: 3. Total Income (as increased by salary received in arrears or advance) (Add item 1 and item 2) | L22: ='us(89)1 Form'!L18 -> 474820
A23: 4. Tax on total income (as per item 3) | L23: =control10E!I2 -> 13000
A24: 5. Tax on total income (as per item 1) | L24: =control10E!I1 -> 13000
A25: 6. Tax on salary received in arrears or advance (Difference of item 4 and item 5) | L25: =L23-L24 -> 0
A26: 7. Tax computed in accordance with Table "A" (Brought from column 7 of Table "A") | L26: =M36 -> 8226
A27: 8. Relief under section 89 (1) (Indicate the difference between the amounts mentioned against items 6 and 7) | L27: =L25-L26 -> -8226 | P27: ;g jkf'k Profile esa REBATE US 89(1) esa HkjsaA
A29: TABLE "A" (See item 7 of Annexure I)
A30: Previous Year(s) | C30: Total Net Taxable income of the relevant previous year | E30: salary received in arrears or advance relating to the relevant previous year as mentioned in col. (1) | G30: Total income (as increased by salry received in arrears or advance) or the relevant previous year mentioned in col. (1) (Add col. 2 and 3) | I30: Tax on total income (as per col. 2) | K30: Tax on total income (as per col. 4) | M30: Difference in tax (Amount under col. 6 minus amount under col. 5)
A31: 1 | C31: 2 | E31: 3 | G31: 4 | I31: 5 | K31: 6 | M31: 7
A32: 2017-18 | C32: ='us(89)1 Form'!L6 -> 489520 | E32: ='us(89)1 Form'!L7 -> 0 | G32: =C32+E32 -> 489520 | I32: =control10E!I4 -> 12335 | K32: =control10E!I9 -> 12335 | M32: =K32-I32 -> 0
A33: 2018-19 | C33: ='us(89)1 Form'!L9 -> 53009 | E33: ='us(89)1 Form'!L10 -> 0 | G33: =C33+E33 -> 53009 | I33: =control10E!I5 -> 0 | K33: =control10E!I10 -> 0 | M33: =K33-I33 -> 0
A34: 2019-20 | C34: ='us(89)1 Form'!L12 -> 802296 | E34: ='us(89)1 Form'!L13 -> 0 | G34: =C34+E34 -> 802296 | I34: =control10E!I6 -> 75878 | K34: =control10E!I11 -> 75878 | M34: =K34-I34 -> 0
A35: 2020-21 | C35: ='us(89)1 Form'!L15 -> 718752 | E35: ='us(89)1 Form'!L16 -> 39548 | G35: =C35+E35 -> 758300 | I35: =control10E!I7 -> 58500 | K35: =control10E!I12 -> 66726 | M35: =K35-I35 -> 8226
A36: Total | M36: =M32+M33+M34+M35 -> 8226
A38: Prog. Dev. By- Kailash chandra sharma, Cont- Klsharma1971@gmail.com
F41: http://ctorone.com

Sheet control10E (hidden)
B1: =form10E!L20 -> 435272 | C1: item 1 | D1: =ROUND(B1,-1) -> 435270 | E1: =IF(D1<=250000,0,IF(D1>250000,(250000)*0.05,0)) -> 12500 | F1: =IF(D1<=500000,0,IF(D1>500000,(D1-500000)*0.2,0)) -> 0 | G1: =E1+F1 -> 12500 | H1: =ROUND(G1*4/100,0) -> 500 | I1: =G1+H1 -> 13000
B2: =form10E!L22 -> 474820 | C2: item 3 | D2: =ROUND(B2,-1) -> 474820 | E2: =IF(D2<=250000,0,IF(D2>250000,(250000)*0.05,0)) -> 12500 | F2: =IF(D2<=500000,0,IF(D2>500000,(D2-500000)*0.2,0)) -> 0 | G2: =E2+F2 -> 12500 | H2: =ROUND(G2*4/100,0) -> 500 | I2: =G2+H2 -> 13000
A3: colum -2
A4: 17-18(2) | B4: =form10E!C32 -> 489520 | D4: =ROUND(B4,-1) -> 489520 | E4: =ROUND(IF(D4<=250000,0,IF(D4<=500000,(D4-250000)*0.05,IF(D4<=75000,12500+(D4-500000)*0.1,IF(D4<=1000000,37500+(D4-75000)*0.15,IF(D4<=1250000,75000+(D4-1000000)*0.2,IF(D4<=1500000,125000+(D4-1250000)*0.25,IF(D4>1500000,187500+(D4-1500000)*0.3,"0"))))))),0) -> 11976 | H4: =ROUND(E4*3/100,0) -> 359 | I4: =E4+H4 -> 12335
A5: 18-19 | B5: =form10E!C33 -> 53009 | D5: 53010 | E5: 0 | H5: =ROUND(E5*3/100,0) -> 0 | I5: =E5+H5 -> 0
A6: 19-20 | B6: =form10E!C34 -> 802296 | D6: 802300 | E6: =IF(D6<=250000,0,IF(D6>250000,(250000)*0.05,0)) -> 12500 | F6: =IF(D6<=500000,0,IF(D6>500000,(D6-500000)*0.2,0)) -> 60460 | G6: =E6+F6 -> 72960 | H6: =ROUND(G6*4/100,0) -> 2918 | I6: =G6+H6 -> 75878
A7: 20-21 | B7: =form10E!C35 -> 718752 | D7: 718750 | E7: =IF(D7<=250000,0,IF(D7>250000,(250000)*0.05,0)) -> 12500 | F7: =IF(D7<=500000,0,IF(D7>500000,(D7-500000)*0.2,0)) -> 43750 | G7: =E7+F7 -> 56250 | H7: =ROUND(G7*4/100,0) -> 2250 | I7: =G7+H7 -> 58500
A8: colum-4
A9: 17-18(4) | B9: =form10E!G32 -> 489520 | D9: =ROUND(B9,-1) -> 489520 | E9: 11976 | H9: =ROUND(E9*3/100,0) -> 359 | I9: =E9+H9 -> 12335
A10: 18-19 | B10: =form10E!G33 -> 53009 | D10: 53010 | E10: =ROUND(IF(D10<=250000,0,IF(D10<=500000,(D10-250000)*0.05,IF(D10<=75000,12500+(D10-500000)*0.1,IF(D10<=1000000,37500+(D10-75000)*0.15,IF(D10<=1250000,75000+(D10-1000000)*0.2,IF(D10<=1500000,125000+(D10-1250000)*0.25,IF(D10>1500000,187500+(D10-1500000)*0.3,"0"))))))),0) -> 0 | H10: =ROUND(E10*3/100,0) -> 0 | I10: =E10+H10 -> 0
A11: 19-20 | B11: =form10E!G34 -> 802296 | D11: 802300 | E11: =IF(D11<=250000,0,IF(D11>250000,(250000)*0.05,0)) -> 12500 | F11: =IF(D11<=500000,0,IF(D11>500000,(D11-500000)*0.2,0)) -> 60460 | G11: =E11+F11 -> 72960 | H11: =ROUND(G11*4/100,0) -> 2918 | I11: =G11+H11 -> 75878
A12: 20-21 | B12: =form10E!G35 -> 758300 | D12: 758300 | E12: =IF(D12<=250000,0,IF(D12>250000,(250000)*0.05,0)) -> 12500 | F12: =IF(D12<=500000,0,IF(D12>500000,(D12-500000)*0.2,0)) -> 51660 | G12: =E12+F12 -> 64160 | H12: =ROUND(G12*4/100,0) -> 2566 | I12: =G12+H12 -> 66726

Sheet Form 16
A1: FORM NO. 16 | M1: Prog. Dev. By- KAILASH CHANDRA SHARMA, Contact:-klsharma1971@gmail.com
A2: [(See Rule 31(1)(a)]
A3: PART-A | M3: DOWNLOAD FROM MY WEB.http://ctorone.com
A4: Certificate uner section 203 of the income-tax act, 1961 for tax deducted at source on Salary.
A5: Certificate No. | F5: Last Updated On
A6: Name and address of the employer | F6: Name and adress of the employee | M6: DOWNLOAD FROM MY WEB.http://ctorone.com
A7: =Profile!C6 -> GSSS JEEWANA | F7: =Profile!C4 -> KAILASH CHANDRA SHARMA
F8: =Profile!C5 -> TEACHER
A9: PAN of the Deductor | D9: TAN of Deductor | F9: PAN of the Employee | I9: Employee Ref No.
A10: =Profile!L6 -> 0 | D10: =Profile!L7 -> 0 | F10: =Profile!C7 -> BBWPK1528D
A11: CIT (TDS) | F11: Assess. Year | H11: Peroid with the Employer
A12: Adress | B12: CIT (TDS), New Central Revenue Building, Statue Circle | F12: 2022-23 | H12: From | J12: To
A13: City | B13: Jaipur | D13: PIN Code | E13: 302005 | H13: 01-4-2021 | J13: 31-03-2022
A14: Summary of amount paid/credited and tax deducted at source thereon in respect of the employee
A15: Quarters | B15: Receipt Numbers of original quarterly statements of TDS under sub-secion (3) of section 200 | E15: Amount paid/ credited | F15: Amount of tax deducted (Rs.) | I15: Amount of tax deposited/ remitted (Rs.)
A16: Ist | B16: =Profile!E29 -> 0 | F16: =Profile!E26 -> 0 | I16: =F16 -> 0
A17: IInd | B17: =Profile!G29 -> 0 | F17: =Profile!G26 -> 0 | I17: =F17 -> 0
A18: IIIrd | B18: =Profile!I29 -> 0 | F18: =Profile!I26 -> 0 | I18: =F18 -> 0
A19: IVth | B19: =Profile!K29 -> 0 | F19: =Profile!K26 -> 0 | I19: =F19 -> 0
A20: TOTAL | E20: =SUM(E16:E19) -> 0 | F20: =SUM(F16:F19) -> 0 | I20: =SUM(I16:I19) -> 0
A21: I. Details of tax deducted and deposited in the Central Government account through book adjustment
A22: (The Deductor to provide payment-wise details of tax deducted and deposited with respect to the deductee)
A23: S.N. | B23: Tax Deposited in respect of the deductee (Rs) | D23: Book identification number (BIN)
D24: Receipt numbers of form No. 24G | E24: DDO serial number in Form No. 24G | F24: Date of transfer voucher (dd/mm/yyyy) | I24: Status of matching with Form No. 24G
A25: 1 | B25: =Salary!V6 -> 0 | D25: =IF([1]profile!B32="","",[1]profile!B32) ->  | E25: =IF([1]profile!B33="","",[1]profile!B33) ->  | F25: =IF([1]profile!B34="","",[1]profile!B34) ->  | I25: =IF(D25>"0","Yes","") -> 
A26: 2 | B26: =Salary!V7 -> 0 | D26: =IF([1]profile!C32="","",[1]profile!C32) ->  | E26: =IF([1]profile!C33="","",[1]profile!C33) ->  | F26: =IF([1]profile!C34="","",[1]profile!C34) ->  | I26: =IF(D26>"0","Yes","") -> 
A27: 3 | B27: =Salary!V8 -> 0 | D27: =IF([1]profile!D32="","",[1]profile!D32) ->  | E27: =IF([1]profile!D33="","",[1]profile!D33) ->  | F27: =IF([1]profile!D34="","",[1]profile!D34) -> 
A28: 4 | B28: =Salary!V9 -> 0 | D28: =IF([1]profile!E32="","",[1]profile!E32) ->  | E28: =IF([1]profile!E33="","",[1]profile!E33) ->  | F28: =IF([1]profile!E34="","",[1]profile!E34) -> 
A29: 5 | B29: =Salary!V10 -> 0 | D29: =IF([1]profile!F32="","",[1]profile!F32) ->  | E29: =IF([1]profile!F33="","",[1]profile!F33) ->  | F29: =IF([1]profile!F34="","",[1]profile!F34) -> 
A30: 6 | B30: =Salary!V11 -> 0 | D30: =IF([1]profile!G32="","",[1]profile!G32) ->  | E30: =IF([1]profile!G33="","",[1]profile!G33) ->  | F30: =IF([1]profile!G34="","",[1]profile!G34) -> 
A31: 7 | B31: =Salary!V12 -> 0 | D31: =IF([1]profile!H32="","",[1]profile!H32) ->  | E31: =IF([1]profile!H33="","",[1]profile!H33) ->  | F31: =IF([1]profile!H34="","",[1]profile!H34) -> 
A32: 8 | B32: =Salary!V13 -> 0 | D32: =IF([1]profile!I32="","",[1]profile!I32) ->  | E32: =IF([1]profile!I33="","",[1]profile!I33) ->  | F32: =IF([1]profile!I34="","",[1]profile!I34) -> 
A33: 9 | B33: =Salary!V14 -> 0 | D33: =IF([1]profile!J32="","",[1]profile!J32) ->  | E33: =IF([1]profile!J33="","",[1]profile!J33) ->  | F33: =IF([1]profile!J34="","",[1]profile!J34) -> 
A34: 10 | B34: =Salary!V15 -> 0 | D34: =IF([1]profile!K32="","",[1]profile!K32) ->  | E34: =IF([1]profile!K33="","",[1]profile!K33) ->  | F34: =IF([1]profile!K34="","",[1]profile!K34) -> 
A35: 11 | B35: =Salary!V16 -> 0 | D35: =IF([1]profile!M32="","",[1]profile!M32) ->  | E35: =IF([1]profile!M33="","",[1]profile!M33) ->  | F35: =IF([1]profile!M34="","",[1]profile!M34) -> 
A36: 12 | B36: =Salary!V17 -> 0 | D36: =IF([1]profile!O32="","",[1]profile!O32) ->  | E36: =IF([1]profile!O33="","",[1]profile!O33) ->  | F36: =IF([1]profile!O34="","",[1]profile!O34) -> 
A37: 13 | B37: =Salary!V18 -> 0 | D37: =IF([1]profile!Q32="","",[1]profile!Q32) ->  | E37: =IF([1]profile!Q33="","",[1]profile!Q33) ->  | F37: =IF([1]profile!Q34="","",[1]profile!Q34) -> 
A38: 14 | B38: =Salary!V19 -> 0 | D38: =IF([1]profile!S32="","",[1]profile!S32) ->  | E38: =IF([1]profile!S33="","",[1]profile!S33) ->  | F38: =IF([1]profile!S34="","",[1]profile!S34) -> 
A39: 15
A40: Total | B40: =SUM(B25:B39) -> 0
A41: II. Details of Tax deducted and deposited in Central Government Account through Challan.
A42: (The deducter to provide payment-wise details of tax deducted and deposited with respect to the deductee)
A43: S.N. | B43: Tax Deposited in respect on of the deductee (Rs) | D43: Challan identification number (CIN)
D44: BSR code of the Bank Branch | F44: Date on which tax deposited (dd/mm/yyyy) | H44: Challan Serial Number | J44: Status of matching with OLTAS
A45: 1
A46: 2
A47: 3
A48: 4
A49: 5
A50: 6
A51: 7
A52: 8
A53: 9
A54: 10
A55: 11
A56: 12
A57: 13
A58: 14
A59: 15
A60: Total | B60: =SUM(B45:B59) -> 0
A61: Verification
A62: I | B62: =Profile!I6 -> 0 | E62: son/daughter of | F62: =Profile!I7 -> 0 | J62: working in the
A63: capacity of | C63: =Profile!G8 -> 0 | F63: (designation) do hereby certify that a sum of
A64: Rs | B64: =I20 -> 0 | C64: =SpellNumber($B$64) ->  | H64: (in words) has been deducted
A65: and deposited to the credit of the Central Govt.. I further certify that the information given above is true, complete and
A66: correct and is based on the books of account, documents,TDS statement, TDS deposited and other available records.
A67: Place
A68: Date | E68: Signature of person responsible for deduction of tax
A69: Designation | C69: =Profile!G8 -> 0 | E69: Full name | F69: =Profile!I6 -> 0
A70: PART- B (Annexure)
A71: DETAILS OF SALARY PAID AND ANY OTHER INCOME AND TAX DEDUCTED
A72: 1. Gross salary
A73: (a) Salary as per provisions contained in section 17(1) | F73: ='IT calculation'!E4 -> 673966
A74: (b) Value of perquisites u/s 17(2) (as per Form No. 12BA, wherever applicable) | F74: ='[1]I T cal.'!D5 -> 0
A75: (c) Profits in lieu of salary under section 17(3) (as per Form No. 12BA, wherever applicable) | F75: 0
A76: (d) Total | H76: =F73+F74+F75 -> 673966
A77: 2. Less: Allowance to the extent exempt u/s 10 House Rent Allowance
A78: Allowance | D78: Rs
A79: House Rent Allow. US10 (13 A) | D79: =IF(E79="0","",[1]salary!E25) ->  | E79: ='[1]I T cal.'!B6 -> 0
A80: ='[1]I T cal.'!C6 -> US10 | D80: ='[1]I T cal.'!D6 -> 0 | E80: ='[1]I T cal.'!D6 -> 0 | F80: =E79+E80 -> 0
A81: 3. Balance (1 - 2) | H81: =H76-F80 -> 673966
A82: 4. Deductions:
A83: (a) | C83: Entertainment allowance | F83: 0
A84: (b) | C84: Tax on employment | F84: 0
A85: 5. Aggregate of 4(a) and (b) | H85: 50000
A86: 6. Income chargeable under the head "salaries" (3-5) | J86: =H81-H85 -> 623966
A87: 7. Add: Any other income reported by employee
A88: Income | E88: Rs
A89: From House Property | E89: ='IT calculation'!D10 -> 0
A90: =CONCATENATE(IF('[1]I T cal.'!A12>0,"NSC int,",""),IF('[1]I T cal.'!B12>0," FDR int,",""),IF('[1]I T cal.'!C12>0," Bonds,",""),IF('[1]I T cal.'!D12>0," SB a/c int,",""),IF('[1]I T cal.'!E12>0," Other income","")) ->  | E90: =E89 -> 0 | H90: =E90 -> 0
A91: 8. Gross total income (6+7) | J91: =J86+H90 -> 623966
A92: 9. Deductions under Chapter VI A
A93: (A) Section 80C, 80CCC and 80CCD
A94: (a) Section 80C | H94: Gross Amount | J94: Deductible Amount
A95: G P F | F95: ='IT calculation'!C16 -> 6465
A96: S I | F96: ='IT calculation'!C17 -> 26400
A97: L I C + ULIP + PLI | F97: ='IT calculation'!C18+'IT calculation'!C20+'IT calculation'!C23 -> 0
A98: Gr. Acc. Insurance | F98: ='IT calculation'!C19 -> 2100
A99: Home loan capital | F99: ='IT calculation'!C21 -> 0
A100: PPF | F100: ='IT calculation'!C22 -> 0
A101: Notified Bond Of NABARD | F101: ='IT calculation'!C24 -> 0
A102: Tuition Fee | F102: ='IT calculation'!E17 -> 0
A103: NSC + Interest on NSC | F103: ='IT calculation'!E19 -> 0
A104: Equity linked savings | F104: 0 | J104: =IF([1]control!H4=TRUE,"US 80CCE (Max limit) +US 80CCD(2)","") -> 
A105: Deferred Annuity | F105: 0
A106: Fixed Deposit | F106: ='IT calculation'!E22 -> 0
A107: Sukanya Samriddhi Yojana | F107: ='IT calculation'!E23 -> 0
A108: (b) Section 80CCC | F108: ='IT calculation'!E24 -> 0 | J108: =CONCATENATE(IF([1]control!H4=TRUE,"(Rs.",""),IF([1]control!H4=TRUE,[1]salary!L25,""),IF([1]control!H4=TRUE,")","")) -> 
A109: (c) Section 80CCD(1) | F109: ='IT calculation'!E16 -> 57092 | H109: =SUM(F95:F109) -> 92057 | J109: ='IT calculation'!E26 -> 149149
A110: (B) Other Sections under Chapter VIA | F110: Gross Amount | H110: Qualifying amount | J110: Deductible Amount
A111: U/S 80CCG | F111: 0 | H111: =F111 -> 0
A112: U/S 80D | F112: ='IT calculation'!E29 -> 0 | H112: =F112 -> 0
A113: U/S 80DD | F113: ='IT calculation'!E30 -> 0 | H113: 0
A114: U/S 80DDB | F114: ='IT calculation'!E31 -> 0 | H114: 0
A115: U/S 80E | F115: ='IT calculation'!E32 -> 0 | H115: 0
A116: U/S 80G | F116: ='IT calculation'!E33 -> 0 | H116: 0
A117: U/S 80GG | F117: ='IT calculation'!E34 -> 0 | H117: 0
A118: U/S 80EE | F118: ='IT calculation'!E35 -> 0 | H118: 0
A119: U/S 80U | F119: ='IT calculation'!E36 -> 0 | H119: 0
A120: US 80CCD (1B) | F120: ='IT calculation'!E38 -> 0 | H120: 0
A121: US 80TTA | F121: ='IT calculation'!E37 -> 0 | H121: 0 | J121: =ROUND((H111+H112+H113+H114+H115+H116+H117+H118+H119+H120+H121),0) -> 0
A122: 10. Aggregate of deductible amount under chapter VIA | J122: =ROUND((J109+J121),0) -> 149149
A123: 11. Total income (8-10) | J123: =ROUND((J91-J122),-1) -> 474820
A124: Income tax for Men | J124: =ROUND(IF(J123<=250000,0,IF(J123<=500000,(J123-250000)*0.05,IF(J123<=1000000,12500+(J123-500000)*0.2,IF(J123>1000000,112500+(J123-1000000)*0.3,"0")))),0) -> 11241
A125: Tax Credit, Max Rs 5000/ | J125: =IF(AND(J123<=350000,J124>=2500),J124-2500,IF(AND(J123<=350000,J124<2500),0,J124)) -> 11241
A126: 12. Tax on total income | J126: =IF(J123<=500000,J125,J124) -> 11241
A127: 13. Education cess | J127: =ROUND((J126*0.03),0)+ROUND((J126*0.01),0) -> 449
A128: 14. Tax payable (12+13) | J128: =J126+J127 -> 11690
A129: 15. Relief under section 89 (Attach details) | J129: ='IT calculation'!E46 -> 0
A130: 16. Tax payable (14-15) | J130: =J128-J129 -> 11690
A131: Verification
A132: I | B132: =Profile!I6 -> 0 | E132: son/daughter of | F132: =Profile!I7 -> 0 | J132: working in the
A133: capacity of | C133: =Profile!G8 -> 0 | F133: (designation) do hereby certify that the
A134: information given above is true, complete and correct and is based on the books of account, documents,TDS statement and other
A135: available records.
A136: Place
A137: Date | E137: Signature of person responsible for deduction of tax
A138: Designation | C138: =Profile!G8 -> 0 | E138: Full name | F138: =Profile!I6 -> 0
A140: Visit http://ctorone.in for Income Tax calculation program.

Sheet control (hidden)
B1: ekg | C1: osru tks fn;k x;k | O1: lkeqfgd nq?kZVuk chek | P1: fgrdkjh fuf/k | Z1: PL
C2: jfuax is cS.M o xzsM is | D2: ewy osru | E2: Mh , | F2: HRA | G2: HRA | H2: NPS | I2: GPF | J2: SI | K2: GPS 2004 | L2: Income Tax | M2: RPMF | N2: RPMF | Q2: MONTH | R2: ACP | S2: GPF/NPS | T2: GPF/NPS | U2: BONUS | V2: YES | W2: =K16 -> 0 | X2: GPF 2004 | Y2: GPF 2004 | Z2: BASIC | AA2: DA | AB2: TOTAL | AE2: SURENDER
B3: 2 | C3: 3 | E3: 4 | F3: 5 | I3: 6 | J3: 7 | K3: 8 | L3: 9 | M3: 10 | N3: 11 | O3: =Profile!C19 -> 2100 | P3: =IF(V20=1,U20,IF(V20=2,U21,0)) -> 250 | V3: NO | X3: GPF | Y3: =IF(Profile!$C$15>="GPF 2004",W2,IF(Profile!$C$15>="GPF",$I$16,)) -> 0 | AC3: SURENDER | AD3: 1 | AE3: BASIC | AF3: DA
A4: 3 | B4: ekpZ&20 | C4: =Profile!C10 -> 36900 | D4: =IF(Profile!$S$7=1,R4,R4) -> 36900 | E4: =ROUND(((D4)*17%),0) -> 6273 | F4: =ROUND(((D4)*8%),0) -> 2952 | G4: =IF(Profile!$S$7=1,F4,0) -> 2952 | H4: =ROUND(((D4+E4)*10%),0) -> 4317 | I4: =IF(C4=0,0,IF(C4<23100,1450,IF(C4<2850,1625,IF(C4<38500,2100,IF(C4<51500,2850,IF(C4<62000,3575,IF(C4<72000,4200,IF(C4<80000,4800,IF(C4<116000,6150,IF(C4<167000,8900,IF(C4>167000,10500))))))))))) -> 2100 | J4: =IF(C4=0,0,IF(C4<22000,800,IF(C4<28500,1200,IF(C4<46500,2200,IF(C4<72000,3000,IF(C4<72000,5000,IF(C4>72000,7000))))))) -> 2200 | K4: =Profile!A22 -> 0 | L4: =B17 -> 0 | M4: =IF(C4=0,0,IF(C4<18000,265,IF(C4<33500,440,IF(C4<54000,658,IF(C4>54000,875))))) -> 658 | N4: =IF(Profile!$O$6="GPF",M4,0) -> 0 | O4: =Profile!C20 -> 0 | Q4: 3 | R4: =IF(Profile!$I$10=3,C4,C4) -> 36900 | S4: =IF(Profile!$O$6="GPF",$I$4,$H$4) -> 4317 | T4: =IF(Profile!$S$7=1,S4,0) -> 4317 | U4: =6774/12*Profile!L11 -> 6774 | V4: YES | Z4: =R4/31*15 -> 17854.83871 | AA4: =Z4*17/100 -> 3035.322581 | AB4: =SUM(Z4:AA4) -> 20890.16129 | AC4: =IF(Profile!$C$11=3,AB4,IF(Profile!C11=4,AB5,IF(Profile!C11=5,AB6,IF(Profile!C11=6,AB7,IF(Profile!C11=7,AB8,IF(Profile!C11=8,AB9,IF(Profile!C11=9,AB10,IF(Profile!C11=10,AB11,IF(Profile!C11=11,AB12,IF(Profile!C11=12,AB13,IF(Profile!C11=1,AB14,IF(Profile!C11=2,AB15,0)))))))))))) -> 0 | AD4: 2 | AE4: =AC4-AF4 -> 0 | AF4: =AC4*14.53% -> 0
A5: 4 | B5: vizsy&20 | C5: =C4 -> 36900 | D5: =IF(Profile!$S$7=1,R5,R5) -> 36900 | E5: =ROUND(((D5)*17%),0) -> 6273 | F5: =ROUND(((D5)*8%),0) -> 2952 | G5: =IF(Profile!$S$7=1,F5,0) -> 2952 | H5: =ROUND(((D5+E5)*10%),0) -> 4317 | I5: 2100 | J5: 2200 | K5: =Profile!B22 -> 0 | L5: =C17 -> 0 | M5: 658 | N5: =IF(Profile!$O$6="GPF",M5,0) -> 0 | O5: =Profile!L16 -> 0 | Q5: 4 | R5: =IF(Profile!$I$10=4,Profile!L10,R4) -> 36900 | S5: =IF(Profile!$O$6="GPF",$I$4,$H$5) -> 4317 | T5: =IF(Profile!$S$7=1,S5,0) -> 4317 | V5: =IF(Profile!$G$11>="YES",U4,IF(Profile!$G$11<="NO",0)) -> 6774 | Z5: =R5/30*15 -> 18450 | AA5: =Z5*17/100 -> 3136.5 | AB5: =SUM(Z5:AA5) -> 21586.5 | AD5: 3
A6: 5 | B6: ebZ&20 | C6: =C5 -> 36900 | D6: =IF(Profile!$S$7=1,R6,R6) -> 36900 | E6: =ROUND(((D6)*17%),0) -> 6273 | F6: 2952 | G6: =IF(Profile!$S$7=1,F6,0) -> 2952 | H6: 4317 | I6: 2100 | J6: 2200 | K6: =Profile!C22 -> 0 | L6: =E17 -> 0 | M6: 658 | N6: =IF(Profile!$O$6="GPF",M6,0) -> 0 | O6: =Profile!F20 -> 0 | Q6: 5 | R6: =IF(Profile!$I$10=5,Profile!L10,R5) -> 36900 | S6: =IF(Profile!$O$6="GPF",$I$4,$H$6) -> 4317 | T6: =IF(Profile!$S$7=1,S6,0) -> 4317 | Z6: =R6/31*15 -> 17854.83871 | AA6: =Z6*17/100 -> 3035.322581 | AB6: 20890.16129 | AD6: 4
A7: 6 | B7: twu&20 | C7: =C6 -> 36900 | D7: =IF(Profile!$S$7=1,R7,R7) -> 36900 | E7: 6273 | F7: 2952 | G7: =IF(Profile!$S$7=1,F7,0) -> 2952 | H7: 4317 | I7: 2100 | J7: 2200 | K7: =Profile!D22 -> 0 | L7: =F17 -> 0 | M7: 658 | N7: =IF(Profile!$O$6="GPF",M7,0) -> 0 | O7: =Profile!L15 -> 0 | Q7: 6 | R7: =IF(Profile!$I$10=6,Profile!L10,R6) -> 36900 | S7: =IF(Profile!$O$6="GPF",$I$4,$H$7) -> 4317 | T7: =IF(Profile!$S$7=1,S7,0) -> 4317 | Z7: =R7/30*15 -> 18450 | AA7: =Z7*17/100 -> 3136.5 | AB7: 21586.5 | AD7: 5
A8: 7 | B8: tqyk-&20 | C8: =IF(AND($C$7=""),"",MROUND($C$7*1.03,100)) -> 38000 | D8: =IF(Profile!$S$7=1,R8,R8) -> 38000 | E8: =ROUND(((D8)*28%),0) -> 10640 | F8: 3040 | G8: =IF(Profile!$S$7=1,F8,0) -> 3040 | H8: 4864 | I8: 2100 | J8: 2200 | K8: =Profile!E22 -> 0 | L8: =H17 -> 0 | M8: 658 | N8: =IF(Profile!$O$6="GPF",M8,0) -> 0 | O8: =Profile!I20 -> 0 | Q8: 7 | R8: =IF(AND(R7=""),"",MROUND(R7*1.03,100)) -> 38000 | S8: =IF(Profile!$O$6="GPF",$I$4,$H$8) -> 4864 | T8: =IF(Profile!$S$7=1,S8,0) -> 4864 | Z8: 19000 | AA8: =Z8*28/100 -> 5320 | AB8: 24320 | AD8: 6
A9: 8 | B9: vx-&20 | C9: =IF(AND($C$7=""),"",MROUND($C$7*1.03,100)) -> 38000 | D9: =IF(Profile!$S$7=1,R9,R9) -> 38000 | E9: =ROUND(((D9)*28%),0) -> 10640 | F9: =ROUND(((D9)*9%),0) -> 3420 | G9: =IF(Profile!$S$7=1,F9,0) -> 3420 | H9: 4864 | I9: 2100 | J9: 2200 | K9: =Profile!F22 -> 0 | L9: =I17 -> 0 | M9: 658 | N9: =IF(Profile!$O$6="GPF",M9,0) -> 0 | O9: =Profile!F16 -> 0 | Q9: 8 | R9: =IF(Profile!$I$10=8,Profile!L10,R8) -> 38000 | S9: =IF(Profile!$O$6="GPF",$I$4,$H$9) -> 4864 | T9: =IF(Profile!$S$7=1,S9,0) -> 4864 | Z9: 19000 | AA9: 5320 | AB9: 24320 | AD9: 7
A10: 9 | B10: flr-&20 | C10: 38000 | D10: =IF(Profile!$S$7=1,R10,R10) -> 38000 | E10: =ROUND(((D10)*28%),0) -> 10640 | F10: =ROUND(((D10)*9%),0) -> 3420 | G10: =IF(Profile!$S$7=1,F10,0) -> 3420 | H10: 4864 | I10: 2100 | J10: 2200 | K10: =Profile!G22 -> 0 | L10: =J17 -> 0 | M10: 658 | N10: =IF(Profile!$O$6="GPF",M10,0) -> 0 | O10: =Profile!L20 -> 0 | Q10: 9 | R10: =IF(Profile!$I$10=9,Profile!L10,R9) -> 38000 | S10: =IF(Profile!$O$6="GPF",$I$4,$H$10) -> 4864 | T10: =IF(Profile!$S$7=1,S10,0) -> 4864 | Z10: 19000 | AA10: 5320 | AB10: 24320 | AD10: 8
A11: 10 | B11: vDVw-&20 | C11: 38000 | D11: =IF(Profile!$S$7=1,R11,R11) -> 38000 | E11: =ROUND(((D11)*31%),0) -> 11780 | F11: 3420 | G11: =IF(Profile!$S$7=1,F11,0) -> 3420 | H11: 4978 | I11: 2100 | J11: 2200 | K11: =Profile!H22 -> 0 | L11: =K17 -> 0 | M11: 658 | N11: =IF(Profile!$O$6="GPF",M11,0) -> 0 | Q11: 10 | R11: =IF(Profile!$I$10=10,Profile!L10,R10) -> 38000 | S11: =IF(Profile!$O$6="GPF",$I$4,$H$11) -> 4978 | T11: =IF(Profile!$S$7=1,S11,0) -> 4978 | Z11: 19000 | AA11: 5320 | AB11: 24320 | AD11: 9
A12: 11 | B12: uc-&20 | C12: 38000 | D12: =IF(Profile!$S$7=1,R12,R12) -> 38000 | E12: =ROUND(((D12)*31%),0) -> 11780 | F12: 3420 | G12: =IF(Profile!$S$7=1,F12,0) -> 3420 | H12: 4978 | I12: 2100 | J12: 2200 | K12: =Profile!I22 -> 0 | L12: =L17 -> 0 | M12: 658 | N12: =IF(Profile!$O$6="GPF",M12,0) -> 0 | Q12: 11 | R12: =IF(Profile!$I$10=11,Profile!L10,R11) -> 38000 | S12: =IF(Profile!$O$6="GPF",$I$4,$H$12) -> 4978 | T12: =IF(Profile!$S$7=1,S12,0) -> 4978 | Z12: 19000 | AA12: 5320 | AB12: 24320 | AD12: 10
A13: 12 | B13: fnl-&20 | C13: 38000 | D13: =IF(Profile!$S$7=1,R13,R13) -> 38000 | E13: 11780 | F13: 3420 | G13: =IF(Profile!$S$7=1,F13,0) -> 3420 | H13: 4978 | I13: 2100 | J13: 2200 | K13: =Profile!J22 -> 0 | L13: =M17 -> 0 | M13: 658 | N13: =IF(Profile!$O$6="GPF",M13,0) -> 0 | Q13: 12 | R13: =IF(Profile!$I$10=12,Profile!L10,R12) -> 38000 | S13: =IF(Profile!$O$6="GPF",$I$4,$H$13) -> 4978 | T13: =IF(Profile!$S$7=1,S13,0) -> 4978 | Z13: 19000 | AA13: 5320 | AB13: 24320 | AD13: 11
A14: 1 | B14: tu-&21 | C14: 38000 | D14: =IF(Profile!$S$7=1,R14,R14) -> 38000 | E14: 11780 | F14: 3420 | G14: =IF(Profile!$S$7=1,F14,0) -> 3420 | H14: 4978 | I14: 2100 | J14: 2200 | K14: =Profile!K22 -> 0 | L14: =N17 -> 0 | M14: 658 | N14: =IF(Profile!$O$6="GPF",M14,0) -> 0 | Q14: 1 | R14: =IF(Profile!$I$10=1,Profile!L10,R13) -> 38000 | S14: =IF(Profile!$O$6="GPF",$I$4,$H$14) -> 4978 | T14: =IF(Profile!$S$7=1,S14,0) -> 4978 | Z14: 19000 | AA14: 5320 | AB14: 24320 | AD14: 12
A15: 2 | B15: Qj-&21 | C15: 38000 | D15: =IF(Profile!$S$7=1,R15,R15) -> 38000 | E15: 11780 | F15: 3420 | G15: =IF(Profile!$S$7=1,F15,0) -> 3420 | H15: 4978 | I15: 2100 | J15: 2200 | K15: =Profile!L22 -> 0 | L15: =O16 -> 0 | M15: 658 | N15: =IF(Profile!$O$6="GPF",M15,0) -> 0 | Q15: 2 | R15: =IF(Profile!$I$10=2,Profile!L10,R14) -> 38000 | S15: =IF(Profile!$O$6="GPF",$I$4,$H$15) -> 4978 | T15: =IF(Profile!$S$7=1,S15,0) -> 4978 | Z15: =R15/28*15 -> 20357.14286 | AA15: 5700 | AB15: 26057.14286
C16: =SUM(C4:C15) -> 451600 | E16: =ROUND(((C16)*17%),0) -> 76772 | F16: =ROUND(((C16)*8%),0) -> 36128 | H16: =ROUND(((C16+E16)*10%),0) -> 52837 | I16: 10500 | J16: 7000 | K16: =SUM(K4:K15) -> 0 | S16: =SUM(S4:S15) -> 56750 | T16: =SUM(T4:T15) -> 56750 | V16: =IF(Profile!$O$6>="NPS",H16,IF(Profile!$O$6<="GPF",0)) -> 52837 | W16: =IF(Profile!$O$6>="NPS",I16,IF(Profile!$O$6<="GPF",0)) -> 10500
A17: IT | B17: =Profile!A25 -> 0 | C17: =Profile!B25 -> 0 | D17: =Profile!C25 -> 0 | E17: =Profile!D25 -> 0 | F17: =Profile!E25 -> 0 | G17: =Profile!F25 -> 0 | H17: =Profile!G25 -> 0 | I17: =Profile!H25 -> 0 | J17: =Profile!I25 -> 0 | K17: =Profile!J25 -> 0 | L17: =Profile!K25 -> 0 | M17: =Profile!L25 -> 0 | N17: =Profile!M25 -> 0 | V17: =V16*2 -> 105674
A18: AREAR TDS | C18: =Salary!V22 -> 0
A19: AREAR TDS | C19: =Salary!V23 -> 0
H20: LIC | I20: =Salary!R25 -> 0 | J20: =Profile!F15 -> 0 | K20: =SUM(I20:J20) -> 0 | R20: GAZETTED | U20: 500 | V20: 2
R21: NON GAZETTED | U21: 250
A22: INCOME TAX CALCULATER 2021-22 | H22: HRA AREAR | J22: =ROUND(((C8)*1%),0) -> 380 | L22: DA AREAR | N22: =(E11-E10)*3 -> 3420
A23: BASIC SALARY 01-03-2021 | B23: =R4 -> 36900
A24: DA | B24: 17 | H24: =B23 -> 36900 | I24: =H24*4 -> 147600 | M24: Standerd Ded. | Q24: 1 | W24: 2 | X24: STATE SERVICE
A25: Income | B25: =I30 -> 564500 | H25: =IF(AND(H24=""),"",MROUND(H24*1.03,100)) -> 38000 | I25: =H25*8 -> 304000 | M25: Investment | Q25: 2 | X25: STATE SUBORDINATE(L10 AND ABOVE)
A26: Standerd Ded. | B26: 50000 | I26: =SUM(I24:I25) -> 451600 | X26: MINISTRIAL SERVICE(L5 TO L9)
A27: House Loan Interest | B27: 0 | H27: HRA | I27: =ROUND(I26*0.08,0) -> 36128 | X27: IVTH CLASS(L1 TO L4)
A28: Investments | B28: 150000 | H28: DA | I28: =I26*B24 -> 7677200
A29: TILL TDS BY Salary | B29: 57500 | I29: =I28/100 -> 76772
I30: =I26+I27+I29 -> 564500
A31: Labels | B31: Old Slabes | C31: New Slabes | S31: 2 | T31: 2
A32: Income | B32: =B25-B26-B27 -> 514500 | C32: =B25 -> 564500
A33: Investments | B33: =B28 -> 150000 | C33: =C28 -> 0
A34: Taxable Income | B34: =B32-B33 -> 364500 | C34: =C32-C33 -> 564500
A35: Slab 5% | B35: =IF($B$34<=250000,0,IF($B$34>250000,(250000)*0.05,0)) -> 12500 | C35: =IF($C$34<=250000,0,IF($C$34>250000,(250000)*0.05,0)) -> 12500
A36: Slab 10% | B36: 0 | C36: =IF($C$34<=500000,0,IF($C$34>500000,(250000)*0.1,0)) -> 25000
A37: Slab 15% | B37: 0 | C37: =IF($C$34<=750000,0,IF($C$34>750000,(250000)*0.15,0)) -> 0
A38: Slab 20% | B38: =IF($B$34<=500000,0,IF($B$34>500000,(B34-500000)*0.2,0)) -> 0 | C38: =IF($C$34<=1000000,0,IF($C$34>1000000,(250000)*0.2,0)) -> 0
A39: Slab 25% | B39: 0 | C39: =IF($C$34<=1250000,0,IF($C$34>1250000,(250000)*0.25,0)) -> 0
A40: Slab 30% | B40: =IF($B$34<=1000000,0,IF($B$34>1000000,(B34-1000000)*0.3,0)) -> 0 | C40: =IF($C$34<=1500000,0,IF($C$34>1500000,(C34-1500000)*0.3,0)) -> 0
A41: Tax Rebate | B41: =IF(B34<=500000,12500,0) -> 12500 | C41: =IF(C34<=500000,12500,0) -> 0
A42: Surcharge 10%
A43: Surcharge 15%
A44: Cess 4% | B44: =(B35+B38+B40)*0.04 -> 500 | C44: =(C35+C36+C37+C38+C39+C40)*0.04 -> 1500
A45: Income Tax | B45: =B35+B38+B40+B44 -> 13000 | C45: =C35+C36+C37+C38+C39+C40+C44 -> 39000
A46: Tax Refund | B46: =B29-B45 -> 44500 | C46: =C29-C45 -> -39000
